{"text_format":"3","workbook":"xlsx","n_sheets":2,"sheets":["Sheet1","Sheet2"],"read":"whole","date_system":"1900"}

{"sheet":"Sheet1","index":0,"n_rows":74,"n_cols":8,"rows_kept":74,"merged":[[1,0,1,7],[5,0,5,7],[60,0,60,7],[69,0,69,3],[71,3,71,4],[73,0,73,3]]}
[{"$nulls":7},"ANNEXURE A"]
["NDOH 15/2023-2024 BID SPECIFICATIONS AND COSTING MODEL (ALL ITEMS MUST BE PRICED, INCLUSIVE OF ALL COST E.G. TRANSPORTATION)"]
[]
["Description","Brand name of product","To be quoted in Unit","Estimated quantity per year","Unit price Year 1 (VAT inclusive)","Unit price Year 2 (VAT inclusive)","Unit price Year 3 (VAT inclusive)","Total Price over 3 years (VAT Inclusive)"]
[{"$nulls":3},1,2,3,4,"5=(2+3+4) x1"]
["Warehouse items "]
["Paper, Photocopy, A3 (80g/m2) - 5 riems per box",null,"Box",100,{"$nulls":3},{"$f":"SUM(E7:G7)*D7","v":{"v":0,"d":"R0.00"}}]
["Paper, Photocopy, A4 (80g/m2) 5 riems per box",null,"Box",7648,{"$nulls":3},{"$f":"SUM(E8:G8)*D8","v":{"v":0,"d":"R0.00"}}]
["Stapler Plier - Silver",null,"Each",550,{"$nulls":3},{"v":0,"d":"R0.00"}]
["Heavy duty stample remover",null,"Each",2500,{"$nulls":3},{"v":0,"d":"R0.00"}]
["Adhesive (glue) 100g; re-useable",null,"Each",403,{"$nulls":3},{"v":0,"d":"R0.00"}]
["Adhesive (glue) stick; 20g stick",null,"Each",595,{"$nulls":3},{"v":0,"d":"R0.00"}]
["Book hardcover 96 pages A4",null,"Each",427,{"$nulls":3},{"v":0,"d":"R0.00"}]
["Book Counter 3Quire 288 Pages",null,"Each",107,{"$nulls":3},{"v":0,"d":"R0.00"}]
["Binder loose Arch Lever File PVC",null,"Each",553,{"$nulls":3},{"v":0,"d":"R0.00"}]
["Tape self-adhesive; clear; 18mm W X 50m LG",null,"Each",307,{"$nulls":3},{"v":0,"d":"R0.00"}]
["Stapler, rapid 17 ",null,"Each",537,{"$nulls":3},{"v":0,"d":"R0.00"}]
["Sharpener, Pencil Sharpener, one hole, angled blade for safe sharpening",null,"Each",331,{"$nulls":3},{"v":0,"d":"R0.00"}]
["File divider A4 assorted colours (Packet of 10)",null,"Pack of 10",1928,{"$nulls":3},{"v":0,"d":"R0.00"}]
["Cardboard 160gm tokai green A4 (Packet of 100)",null,"Pack of 100",5700,{"$nulls":3},{"v":0,"d":"R0.00"}]
["Cardboard 160gm, A4 pink (Packet of 100)",null,"Pack of 100",91,{"$nulls":3},{"v":0,"d":"R0.00"}]
["Cardboard A4 160gm yellow (Packet of 100)",null,"Pack of 100",6600,{"$nulls":3},{"v":0,"d":"R0.00"}]
["Clip folder 32mm",null,"Each",1085,{"$nulls":3},{"v":0,"d":"R0.00"}]
["Clip Folder 50mm",null,"Each",134,{"$nulls":3},{"v":0,"d":"R0.00"}]
["Eraser; pencil; rect; 63X 23X 12.5mm",null,"Each",479,{"$nulls":3},{"v":0,"d":"R0.00"}]
["Pad, writing A4 80 sheets (Lined pages)",null,"Each",827,{"$nulls":3},{"v":0,"d":"R0.00"}]
["File cover A4 duraplus 2579 green with pocket",null,"Each",3621,{"$nulls":3},{"v":0,"d":"R0.00"}]
["File cover A4 duraplus 2579 white with pocket",null,"Each",1157,{"$nulls":3},{"v":0,"d":"R0.00"}]
["File cover A4 duraplus 2579 yellow with pocket",null,"Each",1238,{"$nulls":3},{"v":0,"d":"R0.00"}]
["File cover A4 duraplus 2579, blue with pocket",null,"Each",713,{"$nulls":3},{"v":0,"d":"R0.00"}]
["File cover A4, duraplus 2579, red with pocket",null,"Each",2197,{"$nulls":3},{"v":0,"d":"R0.00"}]
["Fluorescent, highlighter, blue",null,"Each",253,{"$nulls":3},{"v":0,"d":"R0.00"}]
["Fluorescent, highlighter, orange",null,"Each",283,{"$nulls":3},{"v":0,"d":"R0.00"}]
["Fluorescent, highlighter, pink",null,"Each",211,{"$nulls":3},{"v":0,"d":"R0.00"}]
["Fluorescent, highlighter, yellow",null,"Each",491,{"$nulls":3},{"v":0,"d":"R0.00"}]
["Lever Arch file 76mm, black",null,"Each",2947,{"$nulls":3},{"v":0,"d":"R0.00"}]
["File Lever Arch: A4 Polypropylene insert show file; 2 ring; 40mm",null,"Each",223,{"$nulls":3},{"v":0,"d":"R0.00"}]
["Ring binder file 25mm two rings",null,"Each",657,{"$nulls":3},{"v":0,"d":"R0.00"}]
["Lever Arch file 76mm, Sky blue",null,"Each",2500,{"$nulls":3},{"v":0,"d":"R0.00"}]
["Marker felt tip fine water resistant (black)",null,"Each",132,{"$nulls":3},{"v":0,"d":"R0.00"}]
["Marker, permanent Black 2mm bullet tip",null,"Each",606,{"$nulls":3},{"v":0,"d":"R0.00"}]
["Paper clips 33mm",null,"Box",660,{"$nulls":3},{"v":0,"d":"R0.00"}]
["Pen ball-point; fine; black",null,"Each",2219,{"$nulls":3},{"v":0,"d":"R0.00"}]
["Pen ball-point; medium; black",null,"Each",2121,{"$nulls":3},{"v":0,"d":"R0.00"}]
["Pen ball-point; medium; blue",null,"Each",912,{"$nulls":3},{"v":0,"d":"R0.00"}]
["Pen ball-point; medium; red",null,"Each",467,{"$nulls":3},{"v":0,"d":"R0.00"}]
["Pen Gel Type Black",null,"Each",2500,{"$nulls":3},{"v":0,"d":"R0.00"}]
["Pencil black; HB",null,"Each",1531,{"$nulls":3},{"v":0,"d":"R0.00"}]
["Post it flag tape; 43,6mm LG x 25,4 mm W, assorted colours",null,"Packet",657,{"$nulls":3},{"v":0,"d":"R0.00"}]
["Post it pad notes; 75mm x 105mm; large",null,"Each",429,{"$nulls":3},{"v":0,"d":"R0.00"}]
["Post it pad post it note pads 75mm x 70mm",null,"Each",257,{"$nulls":3},{"v":0,"d":"R0.00"}]
["Remover, staple office type; plastic & steel",null,"Each",342,{"$nulls":3},{"v":0,"d":"R0.00"}]
["Ruler plastic",null,"Each",390,{"$nulls":3},{"v":0,"d":"R0.00"}]
["Scissors 165mm",null,"Each",370,{"$nulls":3},{"v":0,"d":"R0.00"}]
["Staples; chisel point; 26/6mm",null,"Box",431,{"$nulls":3},{"v":0,"d":"R0.00"}]
["Tape self-adhesive; buff, 50mm",null,"Each",551,{"$nulls":3},{"v":0,"d":"R0.00"}]
["Buff Tape Clear 50mm",null,"Packet",2500,{"$nulls":3},{"v":0,"d":"R0.00"}]
["Clip Paper 50mm",null,"Packet",104,{"$nulls":3},{"v":0,"d":"R0.00"}]
["Pocket Filing A4 Plastic",null,"Packet",130,{"$nulls":3},{"v":0,"d":"R0.00"}]
["Fold back clips 25mm",null,"Each",1000,{"$nulls":3},{"v":0,"d":"R0.00"}]
["Cleaning material"]
["Reagent Pinegel 5 liter",null,"Each",100,{"$nulls":3},{"$f":"SUM(E62:G62)*D62","v":{"v":0,"d":"R0.00"}}]
["Furniture Polish 275ml",null,"Each",250,{"$nulls":3},{"$f":"SUM(E63:G63)*D63","v":{"v":0,"d":"R0.00"}}]
["Compund cleaning, solvent-detergent, liquid soap all purpose",null,"Each",50,{"$nulls":3},{"v":0,"d":"R0.00"}]
["Soap Diswashing liquid 5 liters",null,"Each",150,{"$nulls":3},{"v":0,"d":"R0.00"}]
["Compund cleaning, 5 liter (like handy andy)",null,"Each",70,{"$nulls":3},{"v":0,"d":"R0.00"}]
["Solution Probe, cleaning toilet bowl cleaner 5 liter",null,"Each",50,{"$nulls":3},{"v":0,"d":"R0.00"}]
["Air freshner spray 180 ml",null,"Each",100,{"$nulls":3},{"v":0,"d":"R0.00"}]
["Black refuse bags 950mm X 750 (packet of 20) at least 30 microns",null,"Pack of 20",2755,{"$nulls":3},{"v":0,"d":"R0.00"}]
["Total cost VAT Inclusive",{"$nulls":3},{"$f":"SUM(E7:E60)+SUM(E62:E69)","v":{"v":0,"d":"R0.00"}},{"v":0,"d":"R0.00"},{"v":0,"d":"R0.00"},{"v":0,"d":"R0.00"}]
[]
["Is your company VAT registered (Yes or No)",null,null,"Please use dropdown list"]
[]
["Total estimated price VAT Exclusive over 3 year period",{"$nulls":3},{"$f":"IF($C$72=\"Yes\",E70*100/115,0)","v":{"v":0,"d":"R0.00"}},{"$f":"IF($C$72=\"Yes\",F70*100/115,0)","v":{"v":0,"d":"R0.00"}},{"v":0,"d":"R0.00"},{"v":0,"d":"R0.00"}]

{"sheet":"Sheet2","index":1,"n_rows":3,"n_cols":1,"rows_kept":3}
["Column1"]
["Yes"]
["No"]